[Event "Titled Tuesday Blitz February 21 Early 2023"]
[White "Mushini Ajay"]
[Black "Hasangatin, Ramil"]
[WhiteFideId "35066188"]
[BlackFideId "4122160"]
[WhiteElo "2310"]
[BlackElo "2457"]
[Result "1-0"]
[Round "01"]
[TimeControl "180+2"]
[Date "2023.02.21"]
[WhiteClock "0:00:10"]
[BlackClock "0:00:06"]

1. e4 {[%clk 0:02:49]}  d5 {[%clk 0:03:00]} 2. exd5 {[%clk 0:02:49]}  Qxd5 {[%clk 0:03:00]} 3. Nc3 {[%clk 0:02:49]}  Qd6 {[%clk 0:03:01]} 4. d4 {[%clk 0:02:49]}  Nf6 {[%clk 0:03:02]} 5. Nf3 {[%clk 0:02:49]}  c6 {[%clk 0:03:02]} 6. Bc4 {[%clk 0:02:48]}  Bg4 {[%clk 0:03:01]} 7. Be3 {[%clk 0:02:47]}  Nbd7 {[%clk 0:03:00]} 8. h3 {[%clk 0:02:46]}  Bh5 {[%clk 0:03:00]} 9. g4 {[%clk 0:02:45]}  Bg6 {[%clk 0:03:01]} 10. Qe2 {[%clk 0:02:45]}  e6 {[%clk 0:03:01]} 11. O-O-O {[%clk 0:02:44]}  Be7 {[%clk 0:03:00]} 12. Ne5 {[%clk 0:02:28]}  Nxe5 {[%clk 0:02:59]} 13. dxe5 {[%clk 0:02:29]}  Qxe5 {[%clk 0:03:00]} 14. f4 {[%clk 0:02:29]}  Qa5 {[%clk 0:02:59]} 15. f5 {[%clk 0:02:21]}  exf5 {[%clk 0:02:58]} 16. gxf5 {[%clk 0:02:07]}  Bh5 {[%clk 0:02:56]} 17. Qf2 {[%clk 0:01:54]}  Bxd1 {[%clk 0:02:55]} 18. Rxd1 {[%clk 0:01:55]}  O-O {[%clk 0:02:26]} 19. Rg1 {[%clk 0:01:51]}  Kh8 {[%clk 0:02:07]} 20. Bd4 {[%clk 0:01:36]}  Rad8 {[%clk 0:01:38]} 21. Qg2 {[%clk 0:01:05]}  Rg8 {[%clk 0:01:37]} 22. Bxf7 {[%clk 0:00:58]}  Rxd4 {[%clk 0:01:36]} 23. Bxg8 {[%clk 0:00:59]}  Bf8 {[%clk 0:01:36]} 24. Bb3 {[%clk 0:00:52]}  Qxf5 {[%clk 0:01:31]} 25. a3 {[%clk 0:00:50]}  Qf4+ {[%clk 0:01:23]} 26. Kb1 {[%clk 0:00:50]}  Rd2 {[%clk 0:01:23]} 27. Qh1 {[%clk 0:00:44]}  a5 {[%clk 0:01:11]} 28. Rf1 {[%clk 0:00:36]}  Qd6 {[%clk 0:01:00]} 29. Ne4 {[%clk 0:00:20]}  Nxe4 {[%clk 0:00:58]} 30. Qxe4 {[%clk 0:00:21]}  Rd1+ {[%clk 0:00:58]} 31. Rxd1 {[%clk 0:00:21]}  Qxd1+ {[%clk 0:00:59]} 32. Ka2 {[%clk 0:00:21]}  Qd8 {[%clk 0:00:58]} 33. c3 {[%clk 0:00:14]}  g6 {[%clk 0:00:55]} 34. Qe5+ {[%clk 0:00:13]}  Bg7 {[%clk 0:00:55]} 35. Qe6 {[%clk 0:00:13]}  Qf8 {[%clk 0:00:47]} 36. h4 {[%clk 0:00:13]}  Bf6 {[%clk 0:00:43]} 37. Qd7 {[%clk 0:00:11]}  Qb8 {[%clk 0:00:25]} 38. h5 {[%clk 0:00:11]}  gxh5 {[%clk 0:00:23]} 39. Bc2 {[%clk 0:00:10]}  Qg8+ {[%clk 0:00:21]} 40. Bb3 {[%clk 0:00:10]}  Qb8 {[%clk 0:00:20]} 41. Bc2 {[%clk 0:00:09]}  Bg7 {[%clk 0:00:20]} 42. Qf5 {[%clk 0:00:05]}  Qg8+ {[%clk 0:00:20]} 43. Bb3 {[%clk 0:00:05]}  Qf8 {[%clk 0:00:19]} 44. Qxh5 {[%clk 0:00:05]}  b5 {[%clk 0:00:17]} 45. a4 {[%clk 0:00:05]}  bxa4 {[%clk 0:00:15]} 46. Bxa4 {[%clk 0:00:05]}  Qg8+ {[%clk 0:00:15]} 47. Bb3 {[%clk 0:00:04]}  Qa8 {[%clk 0:00:16]} 48. Bc2 {[%clk 0:00:03]}  Qg8+ {[%clk 0:00:15]} 49. Bb3 {[%clk 0:00:03]}  Qf8 {[%clk 0:00:09]} 50. Bc2 {[%clk 0:00:03]}  h6 {[%clk 0:00:09]} 51. Qg6 {[%clk 0:00:03]}  Qg8+ {[%clk 0:00:09]} 52. Bb3 {[%clk 0:00:03]}  Qf8 {[%clk 0:00:06]} 53. Qxc6 {[%clk 0:00:03]}  a4 {[%clk 0:00:05]} 54. Qxa4 {[%clk 0:00:02]}  Bf6 {[%clk 0:00:05]} 55. Qc4 {[%clk 0:00:03]}  h5 {[%clk 0:00:05]} 56. Qf7 {[%clk 0:00:04]}  Qxf7 {[%clk 0:00:05]} 57. Bxf7 {[%clk 0:00:05]}  h4 {[%clk 0:00:06]} 58. Be6 {[%clk 0:00:05]}  Kg7 {[%clk 0:00:07]} 59. Bh3 {[%clk 0:00:06]}  Kf8 {[%clk 0:00:08]} 60. b4 {[%clk 0:00:07]}  Ke7 {[%clk 0:00:08]} 61. Kb3 {[%clk 0:00:08]}  Kd6 {[%clk 0:00:09]} 62. c4 {[%clk 0:00:09]}  Kc7 {[%clk 0:00:10]} 63. c5 {[%clk 0:00:09]}  Bd4 {[%clk 0:00:11]} 64. Kc4 {[%clk 0:00:10]}  Bf2 {[%clk 0:00:10]} 65. b5 {[%clk 0:00:10]}  Bg1 {[%clk 0:00:10]} 66. b6+ {[%clk 0:00:10]}  Kc6 {[%clk 0:00:09]} 67. Bg2+ {[%clk 0:00:10]}  Kd7 {[%clk 0:00:10]} 68. Kb5 {[%clk 0:00:10]}  Bh2 {[%clk 0:00:08]} 69. Bh3+ {[%clk 0:00:10]}  Kd8 {[%clk 0:00:08]} 70. Kc6 {[%clk 0:00:10]}  Bg1 {[%clk 0:00:07]} 71. Kd6 {[%clk 0:00:10]}  Bf2 {[%clk 0:00:07]} 72. Kd5 {[%clk 0:00:08]}  Bg1 {[%clk 0:00:07]} 73. Kc6 {[%clk 0:00:09]}  Bf2 {[%clk 0:00:07]} 74. Kb5 {[%clk 0:00:09]}  Be3 {[%clk 0:00:06]} 75. c6 {[%clk 0:00:09]}  Bf4 {[%clk 0:00:06]} 76. Ka6 {[%clk 0:00:09]}  Bg3 {[%clk 0:00:06]} 77. Kb7 {[%clk 0:00:10]}  Bf4 {[%clk 0:00:06]} 78. c7+ {[%clk 0:00:10]} 1-0


[Site "https://www.chess.com"]

[Event "Titled Tuesday Blitz February 21 Early 2023"]
[White "Korchmar, Vasiliy"]
[Black "Sarkar, Justin"]
[WhiteFideId "24131750"]
[BlackFideId "2010011"]
[WhiteElo "2438"]
[BlackElo "2309"]
[Result "1-0"]
[Round "01"]
[TimeControl "180+2"]
[Date "2023.02.21"]
[WhiteClock "0:01:52"]
[BlackClock "0:00:02"]

1. e4 {[%clk 0:03:00]}  e5 {[%clk 0:02:57]} 2. Nf3 {[%clk 0:03:00]}  Nc6 {[%clk 0:02:55]} 3. Bc4 {[%clk 0:02:58]}  Nf6 {[%clk 0:02:54]} 4. d3 {[%clk 0:02:56]}  Bc5 {[%clk 0:02:54]} 5. c3 {[%clk 0:02:56]}  d6 {[%clk 0:02:50]} 6. Bg5 {[%clk 0:02:55]}  h6 {[%clk 0:02:43]} 7. Bh4 {[%clk 0:02:55]}  Bg4 {[%clk 0:02:33]} 8. Nbd2 {[%clk 0:02:54]}  g5 {[%clk 0:02:28]} 9. Bg3 {[%clk 0:02:53]}  a6 {[%clk 0:02:17]} 10. O-O {[%clk 0:02:49]}  Qe7 {[%clk 0:01:14]} 11. Re1 {[%clk 0:02:42]}  Nh5 {[%clk 0:01:07]} 12. Nf1 {[%clk 0:02:06]}  Nf4 {[%clk 0:00:34]} 13. Ne3 {[%clk 0:02:01]}  h5 {[%clk 0:00:13]} 14. Nxg4 {[%clk 0:01:50]}  hxg4 {[%clk 0:00:13]} 15. Nd2 {[%clk 0:01:51]}  Qd7 {[%clk 0:00:04]} 16. Nf1 {[%clk 0:01:51]}  O-O-O {[%clk 0:00:02]} 17. Ne3 {[%clk 0:01:52]} 1-0


[Site "https://www.chess.com"]

[Event "Titled Tuesday Blitz February 21 Early 2023"]
[White "Silva, Pedro Gil Ferreira Da"]
[Black "Darini, Pouria"]
[WhiteFideId "1946102"]
[BlackFideId "12502200"]
[WhiteElo "2227"]
[BlackElo "2401"]
[Result "1-0"]
[Round "01"]
[TimeControl "180+2"]
[Date "2023.02.21"]
[WhiteClock "0:00:59"]
[BlackClock "0:00:13"]

1. c4 {[%clk 0:02:59]}  c5 {[%clk 0:02:58]} 2. Nf3 {[%clk 0:02:58]}  Nc6 {[%clk 0:02:59]} 3. g3 {[%clk 0:02:55]}  Nf6 {[%clk 0:02:57]} 4. Bg2 {[%clk 0:02:56]}  d5 {[%clk 0:02:58]} 5. cxd5 {[%clk 0:02:51]}  Nxd5 {[%clk 0:02:59]} 6. O-O {[%clk 0:02:51]}  Nc7 {[%clk 0:02:54]} 7. Nc3 {[%clk 0:02:51]}  e5 {[%clk 0:02:51]} 8. d3 {[%clk 0:02:51]}  Be7 {[%clk 0:02:51]} 9. Be3 {[%clk 0:02:50]}  O-O {[%clk 0:02:51]} 10. Rc1 {[%clk 0:02:51]}  Be6 {[%clk 0:02:28]} 11. a3 {[%clk 0:02:38]}  f6 {[%clk 0:02:13]} 12. Ne4 {[%clk 0:02:36]}  Na6 {[%clk 0:02:12]} 13. Nxc5 {[%clk 0:02:28]}  Nxc5 {[%clk 0:02:10]} 14. Bxc5 {[%clk 0:02:29]}  Rc8 {[%clk 0:02:03]} 15. Bxe7 {[%clk 0:02:24]}  Qxe7 {[%clk 0:02:03]} 16. Qa4 {[%clk 0:02:24]}  Rfd8 {[%clk 0:02:03]} 17. Rc3 {[%clk 0:02:16]}  Rd7 {[%clk 0:01:56]} 18. Rfc1 {[%clk 0:02:15]}  Rcd8 {[%clk 0:01:57]} 19. b4 {[%clk 0:02:11]}  a6 {[%clk 0:01:53]} 20. b5 {[%clk 0:02:05]}  axb5 {[%clk 0:01:41]} 21. Qxb5 {[%clk 0:02:06]}  Bd5 {[%clk 0:01:41]} 22. Qc5 {[%clk 0:01:40]}  Bxf3 {[%clk 0:01:18]} 23. Qxe7 {[%clk 0:01:35]}  Rxe7 {[%clk 0:01:19]} 24. Bxf3 {[%clk 0:01:35]}  Nd4 {[%clk 0:01:20]} 25. Kg2 {[%clk 0:01:35]}  Nxf3 {[%clk 0:01:11]} 26. Kxf3 {[%clk 0:01:36]}  Kf7 {[%clk 0:01:07]} 27. Rc7 {[%clk 0:01:35]}  Rdd7 {[%clk 0:01:07]} 28. Rxd7 {[%clk 0:01:35]}  Rxd7 {[%clk 0:01:08]} 29. Rb1 {[%clk 0:01:35]}  Ke6 {[%clk 0:01:08]} 30. Rb6+ {[%clk 0:01:35]}  Kd5 {[%clk 0:01:06]} 31. Ke3 {[%clk 0:01:36]}  Kc5 {[%clk 0:01:06]} 32. Rb3 {[%clk 0:01:35]}  b5 {[%clk 0:01:06]} 33. Rc3+ {[%clk 0:01:27]}  Kb6 {[%clk 0:01:06]} 34. f4 {[%clk 0:01:24]}  Re7 {[%clk 0:01:02]} 35. Kf3 {[%clk 0:01:23]}  exf4 {[%clk 0:01:01]} 36. gxf4 {[%clk 0:01:24]}  Ka5 {[%clk 0:00:40]} 37. e4 {[%clk 0:01:22]}  Rd7 {[%clk 0:00:40]} 38. Ke3 {[%clk 0:01:22]}  Ka4 {[%clk 0:00:40]} 39. d4 {[%clk 0:01:20]}  b4 {[%clk 0:00:34]} 40. axb4 {[%clk 0:01:18]}  Kxb4 {[%clk 0:00:35]} 41. Rc8 {[%clk 0:01:17]}  Kb5 {[%clk 0:00:32]} 42. d5 {[%clk 0:01:16]}  Ra7 {[%clk 0:00:32]} 43. e5 {[%clk 0:01:14]}  fxe5 {[%clk 0:00:23]} 44. fxe5 {[%clk 0:01:15]}  Ra1 {[%clk 0:00:24]} 45. e6 {[%clk 0:01:13]}  Re1+ {[%clk 0:00:23]} 46. Kd4 {[%clk 0:01:13]}  Kb6 {[%clk 0:00:24]} 47. Rc3 {[%clk 0:01:11]}  Kb7 {[%clk 0:00:23]} 48. Re3 {[%clk 0:01:04]}  Rxe3 {[%clk 0:00:19]} 49. Kxe3 {[%clk 0:01:05]}  Kc7 {[%clk 0:00:20]} 50. e7 {[%clk 0:01:02]}  Kd7 {[%clk 0:00:20]} 51. d6 {[%clk 0:01:03]}  Ke8 {[%clk 0:00:18]} 52. Ke4 {[%clk 0:01:03]}  Kd7 {[%clk 0:00:17]} 53. Ke5 {[%clk 0:01:03]}  h5 {[%clk 0:00:14]} 54. h4 {[%clk 0:01:03]}  g6 {[%clk 0:00:12]} 55. Kf6 {[%clk 0:01:01]}  Kxd6 {[%clk 0:00:13]} 56. e8=Q {[%clk 0:00:59]} 1-0


[Site "https://www.chess.com"]

[Event "Titled Tuesday Blitz February 21 Early 2023"]
[White "Basso, Pier Luigi"]
[Black "Zeydan, Salih"]
[WhiteFideId "866970"]
[BlackFideId "6361722"]
[WhiteElo "2506"]
[BlackElo "2060"]
[Result "1-0"]
[Round "01"]
[TimeControl "180+2"]
[Date "2023.02.21"]
[WhiteClock "0:01:49"]
[BlackClock "0:00:36"]

1. d4 {[%clk 0:02:53]}  Nf6 {[%clk 0:02:58]} 2. c4 {[%clk 0:02:53]}  e6 {[%clk 0:02:58]} 3. Nf3 {[%clk 0:02:50]}  d5 {[%clk 0:02:56]} 4. Nc3 {[%clk 0:02:50]}  Be7 {[%clk 0:02:56]} 5. Bf4 {[%clk 0:02:47]}  O-O {[%clk 0:02:55]} 6. e3 {[%clk 0:02:43]}  c5 {[%clk 0:02:52]} 7. dxc5 {[%clk 0:02:41]}  dxc4 {[%clk 0:02:41]} 8. Qc2 {[%clk 0:02:38]}  Nd5 {[%clk 0:02:34]} 9. Rd1 {[%clk 0:02:36]}  Nb4 {[%clk 0:02:21]} 10. Qb1 {[%clk 0:02:31]}  Nd3+ {[%clk 0:02:18]} 11. Bxd3 {[%clk 0:02:31]}  cxd3 {[%clk 0:02:19]} 12. Rxd3 {[%clk 0:02:32]}  Nd7 {[%clk 0:02:11]} 13. Bd6 {[%clk 0:02:29]}  Bxd6 {[%clk 0:01:57]} 14. cxd6 {[%clk 0:02:28]}  Nc5 {[%clk 0:01:54]} 15. Rd2 {[%clk 0:02:26]}  b6 {[%clk 0:01:50]} 16. O-O {[%clk 0:02:24]}  Bb7 {[%clk 0:01:50]} 17. e4 {[%clk 0:02:24]}  e5 {[%clk 0:01:39]} 18. Nxe5 {[%clk 0:02:15]}  Re8 {[%clk 0:01:37]} 19. f4 {[%clk 0:01:52]}  f6 {[%clk 0:01:36]} 20. b4 {[%clk 0:01:52]}  Nxe4 {[%clk 0:01:04]} 21. Nxe4 {[%clk 0:01:51]}  fxe5 {[%clk 0:01:01]} 22. f5 {[%clk 0:01:51]}  Qh4 {[%clk 0:00:56]} 23. d7 {[%clk 0:01:51]}  Red8 {[%clk 0:00:45]} 24. Qb3+ {[%clk 0:01:51]}  Kh8 {[%clk 0:00:36]} 25. Nd6 {[%clk 0:01:51]}  Rxd7 {[%clk 0:00:36]} 26. Nf7+ {[%clk 0:01:51]}  Rxf7 {[%clk 0:00:36]} 27. Qxf7 {[%clk 0:01:52]}  Qg5 {[%clk 0:00:36]} 28. Qxb7 {[%clk 0:01:49]} 1-0


[Site "https://www.chess.com"]

[Event "Titled Tuesday Blitz February 21 Early 2023"]
[White "Csonka, Balazs"]
[Black "Miszler, Levente"]
[WhiteFideId "742910"]
[BlackFideId "763276"]
[WhiteElo "2496"]
[BlackElo "2271"]
[Result "0-1"]
[Round "01"]
[TimeControl "180+2"]
[Date "2023.02.21"]
[WhiteClock "0:00:03"]
[BlackClock "0:00:04"]

1. Nf3 {[%clk 0:02:55]}  Nf6 {[%clk 0:02:53]} 2. c4 {[%clk 0:02:52]}  c5 {[%clk 0:02:51]} 3. Nc3 {[%clk 0:02:51]}  Nc6 {[%clk 0:02:50]} 4. e3 {[%clk 0:02:51]}  d5 {[%clk 0:02:43]} 5. cxd5 {[%clk 0:02:52]}  Nxd5 {[%clk 0:02:43]} 6. Bb5 {[%clk 0:02:53]}  Nb4 {[%clk 0:02:07]} 7. d4 {[%clk 0:02:12]}  cxd4 {[%clk 0:02:00]} 8. exd4 {[%clk 0:02:13]}  a6 {[%clk 0:01:57]} 9. Ba4 {[%clk 0:02:12]}  Bg4 {[%clk 0:01:43]} 10. h3 {[%clk 0:01:36]}  Bh5 {[%clk 0:01:38]} 11. a3 {[%clk 0:01:20]}  Nd5 {[%clk 0:01:31]} 12. g4 {[%clk 0:01:19]}  Nxc3 {[%clk 0:01:24]} 13. bxc3 {[%clk 0:01:18]}  Bg6 {[%clk 0:01:22]} 14. Qe2 {[%clk 0:00:48]}  e6 {[%clk 0:01:13]} 15. h4 {[%clk 0:00:27]}  Qd5 {[%clk 0:01:08]} 16. O-O {[%clk 0:00:09]}  b5 {[%clk 0:00:47]} 17. c4 {[%clk 0:00:06]}  Qe4 {[%clk 0:00:39]} 18. Qxe4 {[%clk 0:00:05]}  Bxe4 {[%clk 0:00:39]} 19. Ng5 {[%clk 0:00:02]}  Bd3 {[%clk 0:00:37]} 20. Rd1 {[%clk 0:00:02]}  Bxc4 {[%clk 0:00:34]} 21. Bc2 {[%clk 0:00:02]}  h6 {[%clk 0:00:24]} 22. Nf3 {[%clk 0:00:02]}  O-O-O {[%clk 0:00:25]} 23. Be4 {[%clk 0:00:01]}  Bd5 {[%clk 0:00:14]} 24. Bxd5 {[%clk 0:00:02]}  Rxd5 {[%clk 0:00:14]} 25. Bb2 {[%clk 0:00:03]}  Be7 {[%clk 0:00:12]} 26. Rac1 {[%clk 0:00:03]}  Kb7 {[%clk 0:00:13]} 27. Rc2 {[%clk 0:00:04]}  Rhd8 {[%clk 0:00:12]} 28. Rdc1 {[%clk 0:00:04]}  R5d6 {[%clk 0:00:10]} 29. Ne5 {[%clk 0:00:03]}  Nxe5 {[%clk 0:00:09]} 30. Rc7+ {[%clk 0:00:04]}  Kb6 {[%clk 0:00:09]} 31. dxe5 {[%clk 0:00:05]}  R6d7 {[%clk 0:00:08]} 32. R1c6+ {[%clk 0:00:04]}  Ka5 {[%clk 0:00:07]} 33. Bc3+ {[%clk 0:00:05]}  Ka4 {[%clk 0:00:06]} 34. Rxa6+ {[%clk 0:00:04]}  Kb3 {[%clk 0:00:07]} 35. Rxd7 {[%clk 0:00:04]}  Rxd7 {[%clk 0:00:07]} 36. Ba5 {[%clk 0:00:02]}  Bxa3 {[%clk 0:00:06]} 37. Kg2 {[%clk 0:00:02]}  b4 {[%clk 0:00:07]} 38. Rb6 {[%clk 0:00:02]}  Ka4 {[%clk 0:00:07]} 39. Ra6 {[%clk 0:00:03]}  Kb5 {[%clk 0:00:07]} 40. Ra8 {[%clk 0:00:03]}  Rb7 {[%clk 0:00:06]} 41. Bd8 {[%clk 0:00:03]}  b3 {[%clk 0:00:06]} 42. Rxa3 {[%clk 0:00:02]}  Kb4 {[%clk 0:00:06]} 43. Ra5 {[%clk 0:00:03]}  b2 {[%clk 0:00:06]} 44. Ra8 {[%clk 0:00:02]}  b1=Q {[%clk 0:00:06]} 45. Be7+ {[%clk 0:00:03]}  Kb3 {[%clk 0:00:05]} 46. Bd6 {[%clk 0:00:02]}  Qe4+ {[%clk 0:00:06]} 47. Kg3 {[%clk 0:00:02]}  Qd3+ {[%clk 0:00:06]} 48. Kg2 {[%clk 0:00:01]}  Qd5+ {[%clk 0:00:06]} 49. Kg3 {[%clk 0:00:01]}  Kc4 {[%clk 0:00:05]} 50. Ra3 {[%clk 0:00:02]}  Rb3+ {[%clk 0:00:03]} 51. Rxb3 {[%clk 0:00:02]}  Kxb3 {[%clk 0:00:04]} 52. Kf4 {[%clk 0:00:03]}  Kc4 {[%clk 0:00:04]} 53. f3 {[%clk 0:00:03]}  Qd4+ {[%clk 0:00:04]} 54. Kg3 {[%clk 0:00:03]}  Qe3 {[%clk 0:00:04]} 0-1


[Site "https://www.chess.com"]

[Event "Titled Tuesday Blitz February 21 Early 2023"]
[White "Chos, Alexey"]
[Black "Papasimakopoulos, Alexandros"]
[WhiteFideId "14117762"]
[BlackFideId "4244125"]
[WhiteElo "2296"]
[BlackElo "2401"]
[Result "0-1"]
[Round "01"]
[TimeControl "180+2"]
[Date "2023.02.21"]
[WhiteClock "0:00:03"]
[BlackClock "0:00:09"]

1. c4 {[%clk 0:03:00]}  e6 {[%clk 0:02:53]} 2. g3 {[%clk 0:03:01]}  d5 {[%clk 0:02:42]} 3. Bg2 {[%clk 0:03:02]}  Nf6 {[%clk 0:02:42]} 4. Nf3 {[%clk 0:03:03]}  Be7 {[%clk 0:02:41]} 5. O-O {[%clk 0:03:04]}  O-O {[%clk 0:02:41]} 6. d4 {[%clk 0:03:02]}  Ne4 {[%clk 0:02:37]} 7. Nc3 {[%clk 0:03:02]}  Nxc3 {[%clk 0:02:36]} 8. bxc3 {[%clk 0:03:02]}  c6 {[%clk 0:02:32]} 9. Nd2 {[%clk 0:03:02]}  Nd7 {[%clk 0:02:29]} 10. e4 {[%clk 0:03:01]}  dxe4 {[%clk 0:02:25]} 11. Nxe4 {[%clk 0:03:02]}  Nf6 {[%clk 0:02:20]} 12. Nd2 {[%clk 0:03:00]}  Qa5 {[%clk 0:02:19]} 13. Bb2 {[%clk 0:03:00]}  e5 {[%clk 0:02:14]} 14. Nb3 {[%clk 0:02:58]}  Qc7 {[%clk 0:02:13]} 15. d5 {[%clk 0:02:58]}  c5 {[%clk 0:02:07]} 16. Rb1 {[%clk 0:02:54]}  Bf5 {[%clk 0:01:50]} 17. Rc1 {[%clk 0:02:53]}  Bd6 {[%clk 0:01:50]} 18. Qe2 {[%clk 0:02:45]}  Rfe8 {[%clk 0:01:48]} 19. h3 {[%clk 0:02:45]}  b6 {[%clk 0:01:45]} 20. Nd2 {[%clk 0:02:43]}  e4 {[%clk 0:01:38]} 21. Qe3 {[%clk 0:02:40]}  Bg6 {[%clk 0:01:37]} 22. Rfe1 {[%clk 0:02:40]}  Qd7 {[%clk 0:01:35]} 23. Nf1 {[%clk 0:02:34]}  Qa4 {[%clk 0:01:33]} 24. Qe2 {[%clk 0:02:32]}  a6 {[%clk 0:01:12]} 25. Ne3 {[%clk 0:02:30]}  b5 {[%clk 0:01:12]} 26. h4 {[%clk 0:02:24]}  Be5 {[%clk 0:01:08]} 27. g4 {[%clk 0:02:13]}  h6 {[%clk 0:01:05]} 28. a3 {[%clk 0:01:54]}  Rab8 {[%clk 0:01:04]} 29. Rcd1 {[%clk 0:01:44]}  Rbd8 {[%clk 0:00:54]} 30. Bf1 {[%clk 0:01:38]}  bxc4 {[%clk 0:00:42]} 31. Nxc4 {[%clk 0:01:37]}  Bf4 {[%clk 0:00:40]} 32. d6 {[%clk 0:01:25]}  e3 {[%clk 0:00:39]} 33. Qf3 {[%clk 0:01:05]}  exf2+ {[%clk 0:00:35]} 34. Qxf2 {[%clk 0:01:05]}  Rxe1 {[%clk 0:00:34]} 35. Qxe1 {[%clk 0:00:57]}  Bc2 {[%clk 0:00:27]} 36. Rd2 {[%clk 0:00:21]}  Bxd2 {[%clk 0:00:26]} 37. Qxd2 {[%clk 0:00:22]}  Bb3 {[%clk 0:00:24]} 38. Ne5 {[%clk 0:00:19]}  Nxg4 {[%clk 0:00:23]} 39. c4 {[%clk 0:00:15]}  Nxe5 {[%clk 0:00:18]} 40. Bxe5 {[%clk 0:00:15]}  Qd7 {[%clk 0:00:17]} 41. Qg2 {[%clk 0:00:14]}  f6 {[%clk 0:00:17]} 42. Bxf6 {[%clk 0:00:14]}  Re8 {[%clk 0:00:17]} 43. Be7 {[%clk 0:00:11]}  Rxe7 {[%clk 0:00:17]} 44. dxe7 {[%clk 0:00:10]}  Qxe7 {[%clk 0:00:18]} 45. Qd5+ {[%clk 0:00:10]}  Qf7 {[%clk 0:00:09]} 46. Qxc5 {[%clk 0:00:09]}  Qg6+ {[%clk 0:00:10]} 47. Kh2 {[%clk 0:00:09]}  Qf6 {[%clk 0:00:09]} 48. Qc8+ {[%clk 0:00:06]}  Qf8 {[%clk 0:00:07]} 49. Qe6+ {[%clk 0:00:06]}  Kh8 {[%clk 0:00:07]} 50. Bd3 {[%clk 0:00:06]}  a5 {[%clk 0:00:07]} 51. Qe3 {[%clk 0:00:03]}  Ba4 {[%clk 0:00:04]} 52. Qg3 {[%clk 0:00:04]}  Bd7 {[%clk 0:00:03]} 53. Qe3 {[%clk 0:00:04]}  Be8 {[%clk 0:00:03]} 54. c5 {[%clk 0:00:04]}  Bg6 {[%clk 0:00:02]} 55. Bxg6 {[%clk 0:00:04]}  Qb8+ {[%clk 0:00:01]} 56. Qg3 {[%clk 0:00:03]}  Qb2+ {[%clk 0:00:01]} 57. Kh3 {[%clk 0:00:03]}  Qb7 {[%clk 0:00:01]} 58. Qf2 {[%clk 0:00:03]}  Qc8+ {[%clk 0:00:01]} 59. Kh2 {[%clk 0:00:03]}  Qc7+ {[%clk 0:00:01]} 60. Kg1 {[%clk 0:00:04]}  Qd8 {[%clk 0:00:02]} 61. c6 {[%clk 0:00:04]}  Qd1+ {[%clk 0:00:02]} 62. Kh2 {[%clk 0:00:04]}  Qd6+ {[%clk 0:00:01]} 63. Qg3 {[%clk 0:00:04]}  Qxc6 {[%clk 0:00:02]} 64. Bd3 {[%clk 0:00:05]}  Qe8 {[%clk 0:00:02]} 65. Qf4 {[%clk 0:00:05]}  Qd8 {[%clk 0:00:02]} 66. Qe4 {[%clk 0:00:04]}  Kg8 {[%clk 0:00:01]} 67. Qh7+ {[%clk 0:00:04]}  Kf8 {[%clk 0:00:02]} 68. Qf5+ {[%clk 0:00:04]}  Ke7 {[%clk 0:00:02]} 69. Qe5+ {[%clk 0:00:04]}  Kf8 {[%clk 0:00:03]} 70. Qf5+ {[%clk 0:00:05]}  Ke7 {[%clk 0:00:03]} 71. Bc4 {[%clk 0:00:04]}  Qd2+ {[%clk 0:00:03]} 72. Kg1 {[%clk 0:00:01]}  Qc1+ {[%clk 0:00:03]} 73. Bf1 {[%clk 0:00:02]}  Qe3+ {[%clk 0:00:03]} 74. Qf2 {[%clk 0:00:03]}  Qxa3 {[%clk 0:00:03]} 75. Qe2+ {[%clk 0:00:03]}  Kf6 {[%clk 0:00:03]} 76. Bg2 {[%clk 0:00:04]}  Kf5 {[%clk 0:00:03]} 77. Qe4+ {[%clk 0:00:04]}  Kf6 {[%clk 0:00:04]} 78. h5 {[%clk 0:00:04]}  Qc5+ {[%clk 0:00:03]} 79. Kh2 {[%clk 0:00:04]}  Qxh5+ {[%clk 0:00:04]} 80. Kg3 {[%clk 0:00:05]}  Qe5+ {[%clk 0:00:04]} 81. Qxe5+ {[%clk 0:00:05]}  Kxe5 {[%clk 0:00:05]} 82. Bc6 {[%clk 0:00:05]}  Kd4 {[%clk 0:00:05]} 83. Be8 {[%clk 0:00:06]}  Kc4 {[%clk 0:00:05]} 84. Kg4 {[%clk 0:00:06]}  Kb4 {[%clk 0:00:05]} 85. Kh5 {[%clk 0:00:07]}  a4 {[%clk 0:00:06]} 86. Kg6 {[%clk 0:00:06]}  a3 {[%clk 0:00:07]} 87. Bf7 {[%clk 0:00:06]}  Kc3 {[%clk 0:00:07]} 88. Kxg7 {[%clk 0:00:06]}  h5 {[%clk 0:00:07]} 89. Bd5 {[%clk 0:00:02]}  h4 {[%clk 0:00:08]} 90. Kg6 {[%clk 0:00:03]}  h3 {[%clk 0:00:08]} 91. Kg5 {[%clk 0:00:03]}  h2 {[%clk 0:00:08]} 92. Kg4 {[%clk 0:00:03]}  a2 {[%clk 0:00:09]} 0-1


[Site "https://www.chess.com"]

[Event "Titled Tuesday Blitz February 21 Early 2023"]
[White "Begunov, Konstantin"]
[Black "Lizak, Peter"]
[WhiteFideId "4118510"]
[BlackFideId "731595"]
[WhiteElo "2325"]
[BlackElo "2411"]
[Result "0-1"]
[Round "01"]
[TimeControl "180+2"]
[Date "2023.02.21"]
[WhiteClock "0:00:09"]
[BlackClock "0:00:10"]

1. d4 {[%clk 0:02:44]}  Nf6 {[%clk 0:02:53]} 2. c4 {[%clk 0:02:43]}  c5 {[%clk 0:02:53]} 3. Nf3 {[%clk 0:02:43]}  cxd4 {[%clk 0:02:52]} 4. Nxd4 {[%clk 0:02:44]}  e5 {[%clk 0:02:53]} 5. Nb5 {[%clk 0:02:43]}  d5 {[%clk 0:02:53]} 6. cxd5 {[%clk 0:02:44]}  Bc5 {[%clk 0:02:53]} 7. d6 {[%clk 0:02:45]}  O-O {[%clk 0:02:52]} 8. Nc7 {[%clk 0:02:45]}  Ne4 {[%clk 0:02:32]} 9. e3 {[%clk 0:02:45]}  Qh4 {[%clk 0:02:07]} 10. Qc2 {[%clk 0:02:32]}  Nc6 {[%clk 0:01:51]} 11. a3 {[%clk 0:02:02]}  Bf5 {[%clk 0:01:27]} 12. Bd3 {[%clk 0:01:54]}  Rac8 {[%clk 0:00:42]} 13. Bxe4 {[%clk 0:01:36]}  Bxe4 {[%clk 0:00:41]} 14. Qxc5 {[%clk 0:01:36]}  Bxg2 {[%clk 0:00:38]} 15. Rg1 {[%clk 0:01:14]}  Qxh2 {[%clk 0:00:37]} 16. Rxg2 {[%clk 0:01:12]}  Qxg2 {[%clk 0:00:37]} 17. Nc3 {[%clk 0:01:08]}  Rfd8 {[%clk 0:00:32]} 18. N3d5 {[%clk 0:00:57]}  Rd7 {[%clk 0:00:18]} 19. b4 {[%clk 0:00:33]}  h5 {[%clk 0:00:13]} 20. Bb2 {[%clk 0:00:32]}  h4 {[%clk 0:00:12]} 21. b5 {[%clk 0:00:32]}  h3 {[%clk 0:00:11]} 22. bxc6 {[%clk 0:00:31]}  h2 {[%clk 0:00:10]} 23. Ke2 {[%clk 0:00:23]}  Qg4+ {[%clk 0:00:09]} 24. Kd2 {[%clk 0:00:21]}  bxc6 {[%clk 0:00:09]} 25. Qxc6 {[%clk 0:00:20]}  Rcd8 {[%clk 0:00:09]} 26. Nb5 {[%clk 0:00:19]}  Qg1 {[%clk 0:00:05]} 27. Ndc3 {[%clk 0:00:09]}  Qxf2+ {[%clk 0:00:05]} 28. Ne2 {[%clk 0:00:09]}  Qf6 {[%clk 0:00:05]} 29. Qd5 {[%clk 0:00:08]}  Rxd6 {[%clk 0:00:05]} 30. Nxd6 {[%clk 0:00:07]}  Rxd6 {[%clk 0:00:06]} 31. e4 {[%clk 0:00:07]}  Rxd5+ {[%clk 0:00:06]} 32. exd5 {[%clk 0:00:08]}  Qg5+ {[%clk 0:00:06]} 33. Kc2 {[%clk 0:00:08]}  Qf5+ {[%clk 0:00:06]} 34. Kb3 {[%clk 0:00:08]}  Qf3+ {[%clk 0:00:06]} 35. Nc3 {[%clk 0:00:08]}  h1=Q {[%clk 0:00:07]} 36. Rxh1 {[%clk 0:00:07]}  Qxh1 {[%clk 0:00:07]} 37. d6 {[%clk 0:00:08]}  Qb7+ {[%clk 0:00:07]} 38. Kc4 {[%clk 0:00:07]}  Qc6+ {[%clk 0:00:08]} 39. Kb3 {[%clk 0:00:06]}  Qxd6 {[%clk 0:00:08]} 40. Na4 {[%clk 0:00:07]}  Qd5+ {[%clk 0:00:08]} 41. Kc2 {[%clk 0:00:07]}  Qc4+ {[%clk 0:00:08]} 42. Nc3 {[%clk 0:00:08]}  e4 {[%clk 0:00:09]} 43. Kd2 {[%clk 0:00:08]}  Qd3+ {[%clk 0:00:09]} 44. Ke1 {[%clk 0:00:08]}  e3 {[%clk 0:00:10]} 45. Ne2 {[%clk 0:00:09]}  Qd2+ {[%clk 0:00:09]} 46. Kf1 {[%clk 0:00:09]}  Qd1+ {[%clk 0:00:10]} 0-1


[Site "https://www.chess.com"]